lending/lending_fUSD_20241005
["ID","MTS","AMOUNT","RATE_DAILY","PERIOD"]
[339934120,1728162647237,-273.14997418,0.00042054,120]
[339934121,1728162647246,-209.708694,0.00042085,30]
[339934122,1728162647255,-170.281082,0.00042085,30]
[339934123,1728162647264,-2814.0,0.00042257,30]
[339934124,1728162647273,-500.0,0.0004226,60]
[339934125,1728162647282,-500.0,0.0004226,60]
[339934126,1728162647291,-500.0,0.00042465,60]
[339934127,1728162647301,-500.0,0.00042465,120]
[339934128,1728162647310,-1458.33,0.00042465,120]
[339934129,1728162647322,-160.24,0.00042466,2]
[339934130,1728162647331,-209.708694,0.00042611,30]
[339934131,1728162647340,-170.281082,0.00042611,30]
[339934132,1728162647349,-1632.86534694,0.0004264,15]
[339934133,1728162647358,-667.89,0.00042773,2]
[339934134,1728162647367,-500.0,0.00042808,60]
[339934135,1728162647376,-500.0,0.00042819,120]
[339934136,1728162647385,-259.06973594,0.00042876,60]
[339934137,1728162647395,-500.0,0.00042876,120]
[339934138,1728162647404,-1458.33,0.00042876,120]
[339934139,1728162647413,-151.100606,0.00042898,120]
[339934140,1728162647423,-390.7351186,0.00042902,2]
[339934141,1728162647432,-151.100606,0.00042978,120]
[339934142,1728162647441,-151.100606,0.00042998,120]
[339934143,1728162647450,-151.100606,0.00043078,120]
[339934144,1728162647460,-390.7351186,0.0004308,2]
[339934145,1728162647471,-151.100606,0.00043098,120]
[339934146,1728162647479,-209.708694,0.00043137,30]
[339934147,1728162647489,-170.281082,0.00043137,30]
[339934148,1728162647498,-151.100606,0.00043178,120]
[339934149,1728162647507,-151.100606,0.00043198,120]
[339934150,1728162647516,-151.100606,0.00043248,120]
[339934151,1728162647525,-151.100606,0.00043278,120]
[339934152,1728162647535,-500.0,0.00043287,120]
[339934153,1728162647544,-1458.33,0.00043287,120]
[339934154,1728162647554,-151.100606,0.00043298,120]
[339934155,1728162647563,-151.100606,0.00043348,120]
[339934156,1728162647575,-500.0,0.00043356,60]
[339934157,1728162647584,-500.0,0.00043356,60]
[339934158,1728162647593,-151.100606,0.00043378,120]
[339934159,1728162647602,-390.7351186,0.00043389,2]
[339934160,1728162647611,-1632.86534685,0.0004339,15]
[339934161,1728162647621,-151.100606,0.00043398,120]
[339934162,1728162647630,-151.100606,0.00043448,120]
[339934163,1728162647639,-151.100606,0.00043478,120]
[339934164,1728162647648,-151.100606,0.00043498,120]
[339934165,1728162647659,-152.0,0.00043509,4]
[339934166,1728162647668,-151.100606,0.00043548,120]
[339934167,1728162647677,-151.100606,0.00043578,120]
[339934168,1728162647686,-151.100606,0.00043598,120]
[339934169,1728162647696,-151.100606,0.00043648,120]
[339934170,1728162647705,-658.0,0.00043663,7]
[339934171,1728162647714,-209.708694,0.00043663,30]
[339934172,1728162647723,-170.281082,0.00043663,30]
[339934173,1728162647732,-151.100606,0.00043678,120]
[339934174,1728162647742,-151.100606,0.00043698,120]
[339934175,1728162647751,-500.0,0.00043698,120]
[339934176,1728162647759,-1458.33,0.00043698,120]
[339934177,1728162647769,-151.100606,0.00043748,120]
[339934178,1728162647778,-151.100606,0.00043778,120]
[339934179,1728162647787,-151.100606,0.00043798,120]
[339934180,1728162647796,-390.7351189,0.00043829,2]
[339934181,1728162647806,-151.100606,0.00043848,120]
[339934182,1728162647815,-151.100606,0.00043878,120]
[339934183,1728162647825,-151.100606,0.00043898,120]
[339934184,1728162647834,-2901.4902,0.000439,2]
[339934185,1728162647843,-53570.7555,0.000439,2]
[339934186,1728162647852,-1545.29597446,0.000439,16]
[339934187,1728162647861,-1364.9288,0.000439,2]
[339934188,1728162647870,-500.0,0.00043904,120]
[339934189,1728162647880,-151.100606,0.00043948,120]
[339934190,1728162647889,-151.100606,0.00043968,120]
[339934191,1728162647898,-151.100606,0.00043978,120]
[339934192,1728162647907,-1500.0,0.00043987,2]
[339934193,1728162647916,-2036.76,0.00043989,30]
[339934194,1728162647925,-500.0,0.00043989,120]
[339934195,1728162647935,-500.0,0.00043989,120]
[339934196,1728162647944,-500.0,0.00043989,120]
[339934197,1728162647953,-500.0,0.00043989,120]
[339934198,1728162647962,-500.0,0.00043989,120]
[339934199,1728162647971,-645.09628117,0.00043989,120]
[339934200,1728162647980,-500.0,0.00043989,120]
[339934201,1728162647989,-500.0,0.00043989,2]
[339934202,1728162647998,-500.0,0.00043989,120]
[339934203,1728162648007,-305.84491203,0.00043989,120]
[339934204,1728162648016,-500.0,0.00043989,120]
[339934205,1728162648025,-500.0,0.00043989,120]
[339934206,1728162648034,-500.0,0.00043989,120]
[339934207,1728162648043,-500.0,0.00043989,120]
[339934208,1728162648052,-500.0,0.00043989,120]
[339934209,1728162648061,-100075.4577828,0.0004399,7]
[339934210,1728163318119,162.73,0.00010959,2]
[339934211,1728163528990,368.93344449,0.000101,2]
[339934212,1728163554040,1279.31311316,6.94e-05,2]
[339934213,1728163668604,300.69288408,0.000109,2]
[339934217,1728163733188,8772.02713672,0.000109,2]
[339934224,1728163746488,1577.38087214,0.000109,2]
[339934225,1728163750469,346.34149128,0.000109,2]
[339934234,1728163791550,1306.29227748,0.000109,2]
[339934242,1728163832249,-446.45853724,0.0001099,2]
[339934246,1728163832360,-1927.85522763,0.0001099,2]
[339934247,1728163832370,-237.47651731,0.0001099,2]
[339934248,1728163832379,-150.0,0.00010999,2]
[339934249,1728163832389,-500.0,0.00010999,2]
[339934250,1728163832398,-500.0,0.00010999,2]
[339934251,1728163832407,-500.0,0.00010999,2]
[339934252,1728163832417,-500.0,0.00010999,2]
[339934253,1728163832426,-500.0,0.00010999,2]
[339934254,1728163832435,-176.34629431,0.00010999,2]
[339934255,1728163832445,-223.60400389,0.00010999,2]
[339934256,1728163832455,-250.0,0.00011,2]
[339934257,1728163832464,-270530.87905853,0.00011,2]
[339934258,1728163832475,-2862.03116841,0.00011,2]
[339934259,1728163832486,-65110.93399278,0.00011,2]
[339934261,1728163832497,-766.71121484,0.00011,2]
[339934286,1728163838343,-4352.78435037,0.00011,2]
[339934287,1728163838354,-4235.85334958,0.00011,2]
[339934288,1728163838506,-223930.60279357,0.00011,2]
[339934294,1728163840467,-454.84478233,0.00011,2]
[339934295,1728163840478,-2520.98943006,0.00011,2]
[339934296,1728163840490,-1919.11296398,0.00011,2]
[339934324,1728163846312,-680.31065153,0.00011,2]
[339934325,1728163970909,159.09,0.00010959,2]
[339934327,1728164216823,1420.15426458,0.000109,2]
[339934328,1728164304979,680.3106,0.000109,2]
[339934329,1728164311455,272.793,0.0001078,2]
[339934335,1728164575141,7935.78,0.000201,120]
[339934336,1728164577953,633.2,0.000109,2]
[339934337,1728164642118,1278.13883814,0.000109,2]
[339934364,1728164951156,-1926.37548045,0.00010999,2]
[339934365,1728164951178,-150.0,0.00010999,2]
[339934366,1728164951203,-300.0,0.00010999,2]
[339934367,1728164951225,-500.0,0.00010999,2]
[339934368,1728164951245,-434.55211319,0.00010999,2]
[339934369,1728164951266,-440.53231007,0.00010999,2]
[339934370,1728164951286,-500.0,0.00010999,2]
[339934371,1728164951306,-500.0,0.00010999,2]
[339934372,1728164951330,-22928.71163629,0.00011,2]
[339934373,1728164965153,-392174.3126,0.00011,2]
[339934374,1728164984362,160.24,0.00010959,2]
[339934375,1728165031428,-300.0,0.00010999,2]
[339934376,1728165031438,-1425.5697632,0.00011,2]
[339934377,1728165031483,-470.79692717,0.00011,2]
[339934378,1728165031495,-4036.74748476,0.00011,2]
[339934379,1728165031507,-315.0,0.00011,2]
[339934380,1728165031540,-497.48514,0.00011,2]
[339934381,1728165031552,-1366.27483742,0.00011,2]
[339934382,1728165031601,-1697.0288294,0.00011,2]
[339934383,1728165031613,-6683.26958659,0.00011,2]
[339934384,1728165031625,-2408.87747833,0.00011,2]
[339934385,1728165031637,-5400.0,0.00011,2]
[339934386,1728165031649,-1381.95190557,0.00011,2]
[339934387,1728165031661,-7328.49989342,0.00011,2]
[339934388,1728165031672,-2774.43487564,0.00011,2]
[339934389,1728165031684,-7453.55953814,0.00011,2]
[339934390,1728165031697,-787.72537109,0.00011,2]
[339934391,1728165031711,-809.14403611,0.00011,2]
[339934393,1728165031723,-314569.81325699,0.00011,2]
[339934402,1728165037513,-1035.7815816,0.00011,2]
[339934403,1728165037526,-1959.02575318,0.00011,2]
[339934404,1728165037539,-2216.38758432,0.00011,2]
[339934450,1728165039688,-15509.24375004,0.00011,2]
[339934453,1728165042511,-620.49852,0.00011,2]
[339935530,1728165067338,1150.32495438,0.000109,2]
[339935531,1728165101996,319.6893,0.000109,2]
[339935532,1728165121556,162.21545144,0.000109,2]
[339935533,1728165161020,3071.8389,0.000109,2]
[339935534,1728165492597,1579.58090787,0.000109,2]
[339935535,1728165511470,218.235,0.0001078,2]
[339935536,1728165518263,150.0,0.00011,3]
[339935537,1728165529732,160.86,0.00010959,2]
[339935538,1728165883137,2000.0,0.00015,30]
[339935539,1728165917278,2000.0,0.00021,90]
[339935540,1728165918035,1421.62281711,0.000109,2]
[339935541,1728165997288,4480.2,0.0001097,2]
[339935542,1728166061225,162.73,0.00010959,2]
[339935552,1728166231677,-150.0,0.00010999,2]
[339935553,1728166231687,-300.0,0.00010999,2]
[339935554,1728166231697,-141.8028466,0.00011,2]
[339935555,1728166231790,-1137.77535392,0.00011,2]
[339935556,1728166231802,-63943.34945576,0.00011,2]
[339935557,1728166231814,-8822.59391753,0.00011,2]
[339935620,1728166237804,-886.64109247,0.00011,2]
[339935621,1728166237873,-21270.05302916,0.00011,2]
[339935788,1728166239871,-1590.78604356,0.00011,2]
[339935791,1728166239883,-1691.125,0.00011,2]
[339935793,1728166239897,-3224.27037394,0.00011,2]
[339935795,1728166239911,-23776.19389263,0.00011,2]
[339936071,1728166242770,-63763.22356245,0.00011,2]
[339936344,1728166245800,-3028.222839,0.00011,2]
[339936440,1728166286626,230.482276,0.00010944,2]
[339936441,1728166343166,1505.28209274,0.000109,2]
[339936442,1728166402554,6685.1077,0.000109,2]
[339936443,1728166573838,161.6,0.00010959,2]
[339936444,1728166711494,174.588,0.0001078,2]
[339936445,1728166768611,1354.75388352,0.000109,2]
[339936446,1728166770225,2470.7728,0.000109,2]
[339936447,1728166776363,2514.0195,0.000109,2]
[339936448,1728166819330,159.91744474,0.000109,2]
[339936449,1728166956322,4499.7422,0.000109,2]
[339936450,1728167007556,868.41,9.888e-05,2]
[339936451,1728167028696,-722.52382964,0.0001099,2]
[339936452,1728167028720,-158.31767819,0.0001099,2]
[339936453,1728167028744,-300.0,0.00010998,2]
[339936454,1728167028766,-1015.12729283,0.00010999,2]
[339936455,1728167028791,-150.0,0.00010999,2]
[339936456,1728167028815,-500.0,0.00010999,2]
[339936457,1728167028839,-500.0,0.00010999,2]
[339936458,1728167028863,-500.0,0.00010999,2]
[339936459,1728167028886,-182.34643532,0.00010999,2]
[339936460,1728167028913,-7168.57626402,0.00011,2]
[339936461,1728167193857,1219.27849515,0.000109,2]
[339936475,1728167366156,-300.0,0.00010999,2]
[339936476,1728167366180,-27380.02552,0.00011,2]
[339936477,1728167373154,-127683.82181084,0.00011,2]
[339936478,1728167373195,-127683.82181084,0.00011,2]
[339936489,1728167431823,-1474.18482912,0.00011,2]
[339936490,1728167431963,-15011.14076,0.00011,2]
[339936491,1728167432038,-398.2,0.00011,2]
[339936507,1728167438024,-554.47157892,0.00011,2]
[339936508,1728167438037,-785.23100942,0.00011,2]
[339936509,1728167438168,-949412.56159831,0.00011,2]
[339936510,1728167438179,-1806.10303032,0.00011,2]
[339936661,1728167439971,-22900.82877106,0.00011,2]
[339936663,1728167439982,-791.18864157,0.00011,2]
[339936679,1728167440119,-976.72298041,0.00011,2]
[339936681,1728167440130,-1009.768188,0.00011,2]
[339936683,1728167440142,-375.29203495,0.00011,2]
[339936685,1728167440154,-362.06,0.00011,2]
[339936687,1728167440164,-570.16499992,0.00011,2]
[339936689,1728167440175,-5630.65158727,0.00011,2]
[339936693,1728167440200,-2999.14326809,0.00011,2]
[339936695,1728167440211,-562.02500001,0.00011,2]
[339936969,1728167443024,-582.40230138,0.00011,2]
[339936977,1728167443095,-63763.22356245,0.00011,2]
[339936979,1728167443107,-494.92584373,0.00011,2]
[339936982,1728167443118,-674.4150828,0.00011,2]
[339937165,1728167445918,-6108.02681,0.00011,2]
[339937173,1728167445990,-333.96654544,0.00011,2]
[339937188,1728167446130,-610.53864,0.00011,2]
[339937464,1728167464622,5749.3888,0.000109,2]
[339937465,1728167475157,826.5722,0.000109,2]
[339937466,1728167481244,4230.4916,0.000109,2]
[339937467,1728167484550,156.28090449,0.000109,2]
[339937468,1728167504809,7924.9599,0.000109,2]
[339937469,1728167514562,326.1077,0.000109,2]
[339937470,1728167523082,860.29,9.262e-05,2]
[339937471,1728167526661,6736.9809,0.000109,2]
[339937472,1728167539781,700.77021422,0.000109,2]
[339937473,1728167547436,1127.22634023,0.00010682,2]
[339937474,1728167579877,10164.9362,0.000109,2]
[339937475,1728167593005,11087.08242113,0.000109,2]
[339937476,1728167593031,4145.10617887,0.000109,2]
[339937477,1728167598628,21575.687,0.000109,2]
[339937478,1728167614679,1428.2992,0.000109,2]
[339937479,1728167619409,1357.50138862,0.000109,2]
[339937480,1728167628610,261.469,0.000109,2]
[339937481,1728167646996,1000.0,0.000109,2]
[339937482,1728167685676,217.12067785,0.000109,2]
[339937483,1728167735279,1585.83,0.00010947,2]
[339937484,1728167747690,1588.1925,0.000109,2]
[339937485,1728167807160,827.9067,0.000109,2]
[339937486,1728167836490,213.8018,0.000109,2]
[339937487,1728167871341,506.6185,0.000109,2]
[339937488,1728167872588,160.55,0.00010959,2]
[339937489,1728167894421,405.26,0.0001094,2]
[339937490,1728167907926,151.34010265,0.000109,2]
[339937491,1728167911599,219.098,0.0001078,2]
[339937492,1728167911654,158.72,0.0001078,2]
[339937493,1728167947670,38509.7304,0.000109,2]
[339937494,1728167952733,1901.4562,0.000109,2]
[339937495,1728168042974,1000.0,0.00010227,2]
[339937496,1728168044651,1221.75124974,0.000109,2]
[339937497,1728168049074,8585.43,0.00010239,2]
[339937498,1728168061186,156.46,0.00010263,2]
[339937499,1728168064543,159.79061283,0.000109,2]
[339937500,1728168066505,72728.87,0.00010959,2]
[339937501,1728168072054,829.25,8.389e-05,2]
[339937502,1728168072308,829.25,0.00010653,2]
[339937503,1728168093924,597.96,0.00010389,2]
[339937504,1728168100880,23900.0,0.00010307,2]
[339937505,1728168108875,156.62,0.00010874,2]
[339937506,1728168119387,1852.42,0.00010377,2]
[339937507,1728168148768,242.95,0.00010377,2]
[339937508,1728168157013,7198.69,0.00010377,2]
[339937509,1728168170289,275.16,0.00010487,2]
[339937510,1728168207874,855.42,0.0001045,2]
[339937511,1728168223298,250.0,0.00010533,2]
[339937512,1728168226335,250.0,0.00010617,2]
[339937513,1728168387448,160.86,0.00010959,2]
[339937514,1728168432162,-200.0,0.00010977,2]
[339937515,1728168432181,-150.0,0.00010984,2]
[339937516,1728168432202,-161.79,0.00010985,2]
[339937517,1728168432220,-172.95503292,0.0001099,2]
[339937518,1728168469965,1099.57612482,0.000109,2]
[339937544,1728168631975,-6178.12542846,0.0001099,2]
[339937548,1728168632008,-2966.48754,0.0001099,2]
[339937549,1728168632019,-700.0,0.0001099,2]
[339937550,1728168632031,-2035.89616596,0.0001099,2]
[339937551,1728168632043,-3504.07490294,0.0001099,2]
[339937552,1728168632054,-1116.33192482,0.0001099,2]
[339937553,1728168632066,-1098.10124655,0.0001099,2]
[339937554,1728168632078,-688.39999162,0.0001099,2]
[339937555,1728168632089,-2194.55656055,0.0001099,2]
[339937556,1728168632101,-1010.21927715,0.0001099,2]
[339937557,1728168632110,-166.42136767,0.0001099,2]
[339937558,1728168632120,-213.33630603,0.00010999,2]
[339937559,1728168632130,-282.02587164,0.00010999,2]
[339937560,1728168632139,-150.0,0.00010999,2]
[339937561,1728168632149,-3421.28889839,0.00011,2]
[339937562,1728168632160,-45063.46960216,0.00011,2]
[339937563,1728168632171,-218086.94153715,0.00011,2]
[339937564,1728168632183,-14613.83921338,0.00011,2]
[339937565,1728168632194,-5925.17501481,0.00011,2]
[339937566,1728168632205,-4773.11977575,0.00011,2]
[339937567,1728168632216,-278.60878409,0.00011,2]
[339937568,1728168632227,-541.65536624,0.00011,2]
[339937569,1728168632238,-514.0212419,0.00011,2]
[339937570,1728168632250,-487.94260131,0.00011,2]
[339937571,1728168632281,-1963.7448324,0.00011,2]
[339937572,1728168632292,-2218.35862201,0.00011,2]
[339937577,1728168632359,-76.08278147,0.00011,2]
[339937579,1728168632370,-592.36206145,0.00011,2]
[339937581,1728168632381,-20557.51940339,0.00011,2]
[339937606,1728168638244,-13142.68775836,0.00011,2]
[339937607,1728168638255,-2953.88686576,0.00011,2]
[339937608,1728168638268,-2901.32341379,0.00011,2]
[339937609,1728168638278,-1264.43557993,0.00011,2]
[339937610,1728168638289,-1138.0,0.00011,2]
[339937611,1728168638410,-1257.43565756,0.00011,2]
[339937612,1728168638423,-1221.2,0.00011,2]
[339937613,1728168638435,-1459.56484938,0.00011,2]
[339937614,1728168638446,-166570.90860235,0.00011,2]
[339937615,1728168638458,-699.69900693,0.00011,2]
[339937616,1728168638528,-845.302431,0.00011,2]
[339937619,1728168640026,-4218.43884436,0.00011,2]
[339937620,1728168640143,-391.951146,0.00011,2]
[339937621,1728168640154,-969.65529697,0.00011,2]
[339937622,1728168640165,-397.95,0.00011,2]
[339937623,1728168640259,-6664.80077973,0.00011,2]
[339937624,1728168640271,-828.41603292,0.00011,2]
[339937625,1728168640284,-1089.88916194,0.00011,2]
[339937626,1728168640298,-2178.4645,0.00011,2]
[339937627,1728168640313,-785.82129932,0.00011,2]
[339937628,1728168640327,-2383.28089997,0.00011,2]
[339937629,1728168640343,-34138.3937352,0.00011,2]
[339937630,1728168640358,-61525.0852731,0.00011,2]
[339937632,1728168640374,-27053.90907254,0.00011,2]
[339937634,1728168640385,-93681.41340885,0.00011,2]
[339937636,1728168640398,-998.486475,0.00011,2]
[339937638,1728168640410,-2110.66568425,0.00011,2]
[339937641,1728168640422,-1458.91842534,0.00011,2]
[339937643,1728168640434,-794.79791123,0.00011,2]
[339937928,1728168643197,-6130.62450001,0.00011,2]
[339937931,1728168643225,-7300.0,0.00011,2]
[339937943,1728168643324,-5420.415,0.00011,2]
[339937945,1728168643335,-1371.56063522,0.00011,2]
[339937947,1728168643350,-4924.92,0.00011,2]
[339937948,1728168643376,-359.73856219,0.00011,2]
[339937952,1728168643546,-6285.55191678,0.00011,2]
[339937954,1728168643558,-1302.1840501,0.00011,2]
[339938246,1728168646378,-592.03901977,0.00011,2]
[339938249,1728168646389,-636.62996307,0.00011,2]
[339938251,1728168646401,-249422.83513321,0.00011,2]
[339938257,1728168677803,762.21,9.268e-05,2]
[339938258,1728168707278,156.28090448,0.000109,2]
[339938259,1728168801899,150.0,0.00010908,2]
[339938260,1728168801933,150.0,0.00010906,2]
[339938261,1728168802044,150.0,0.00010812,2]
[339938262,1728168802079,150.0,0.00010767,2]
[339938263,1728168802119,150.0,0.00010734,2]
[339938264,1728168802284,150.0,0.00010782,2]
[339938265,1728168802321,150.0,0.0001095,2]
[339938266,1728168802420,150.0,0.00010737,2]
[339938267,1728168802454,150.0,0.0001092,2]
[339938268,1728168802495,150.0,0.00010876,2]
[339938269,1728168802636,150.0,0.0001096,2]
[339938270,1728168802744,150.0,0.00010898,2]
[339938271,1728168802911,150.0,0.00010935,2]
[339938272,1728168802980,150.0,0.00010776,2]
[339938273,1728168803192,150.0,0.00010915,2]
[339938274,1728168810493,150.0,0.00010793,2]
[339938275,1728168825973,441.68766587,0.00010956,2]
[339938276,1728168835630,250.0,0.00010896,2]
[339938277,1728168887190,250.0,0.00010849,2]
[339938278,1728168895269,989.61851232,0.000109,2]
[339938279,1728168895847,160.84,0.00010959,2]
[339938280,1728168913863,203.59,0.00010919,2]
[339938281,1728168966068,348.59,0.00010945,2]
[339938282,1728168986200,157.39595793,0.000109,2]
[339938283,1728168989833,779.08,0.00010945,2]
[339938284,1728169094881,281.48,0.00010959,2]
[339938285,1728169105917,278.2,0.00010955,2]
[339938286,1728169184008,156.46,0.00010526,2]
[339938287,1728169203837,200.0,0.00010526,2]
[339938288,1728169223818,739.19,8.82e-05,2]
[339938289,1728169240418,150.0,0.00011,3]
[339938290,1728169288440,170.12,0.00010721,2]
[339938291,1728169301009,427.71,0.00010954,2]
[339938292,1728169307738,1491.59,0.00010954,2]
[339938293,1728169309748,159.79061283,0.000109,2]
[339938294,1728169320546,890.65666107,0.000109,2]
[339938295,1728169398768,200.0,0.00010937,2]
[339938296,1728169461947,150.0,0.00010932,2]
[339938297,1728169461989,150.0,0.00010844,2]
[339938298,1728169462027,150.0,0.00010952,2]
[339938299,1728169462068,150.0,0.00010814,2]
[339938300,1728169462117,150.0,0.000108,2]
[339938301,1728169462227,150.0,0.00010727,2]
[339938302,1728169462340,150.0,0.00010854,2]
[339938303,1728169462456,150.0,0.00010776,2]
[339938304,1728169462519,150.0,0.00010799,2]
[339938305,1728169462588,150.0,0.00010809,2]
[339938306,1728169462727,150.0,0.00010884,2]
[339938307,1728169462762,150.0,0.00010914,2]
[339938308,1728169462835,150.0,0.00010738,2]
[339938309,1728169478119,150.0,0.00010758,2]
[339938310,1728169478152,1500.0,0.00010877,2]
[339938311,1728169478183,150.0,0.00010883,2]
[339938312,1728169478216,1500.0,0.0001093,2]
[339938313,1728169478247,150.0,0.00010953,2]
[339938314,1728169478279,1500.0,0.00010722,2]
[339938315,1728169478311,150.0,0.00010906,2]
[339938316,1728169478355,150.0,0.00010828,2]
[339938317,1728169621341,161.6,0.00010959,2]
[339938318,1728169715729,716.57,9.713e-05,2]
[339938319,1728169745873,801.59099499,0.000109,2]
[339938324,1728169832186,-450.0,0.00010963,2]
[339938325,1728169832222,-350.0,0.00010963,2]
[339938326,1728169832231,-150.0,0.00010972,2]
[339938327,1728169832242,-300.0,0.00010973,2]
[339938328,1728169832256,-200.0,0.00010973,2]
[339938329,1728169832265,-500.0,0.00010973,2]
[339938330,1728169832274,-207.19,0.00010998,2]
[339938331,1728169832284,-175.278,0.00010999,2]
[339938332,1728169832293,-150.0,0.00010999,2]
[339938333,1728169832303,-300.0,0.00010999,2]
[339938334,1728169832312,-194.26543179,0.00010999,2]
[339938340,1728169832494,-36.50911352,0.00010999,2]
[339938341,1728169832504,-1937.62825382,0.00011,2]
[339938342,1728169832515,-3290.66034891,0.00011,2]
[339938343,1728169832526,-1592.89895978,0.00011,2]
[339938353,1728169838352,-6600.0,0.00011,2]
[339938354,1728169838428,-633.04703007,0.00011,2]
[339938355,1728169838439,-9820.31401503,0.00011,2]
[339938356,1728169838451,-944.18934277,0.00011,2]
[339938357,1728169838462,-8483.61398725,0.00011,2]
[339938358,1728169838473,-918.84607546,0.00011,2]
[339938359,1728169838484,-37010.14324801,0.00011,2]
[339938360,1728169838495,-327.9738502,0.00011,2]
[339938361,1728169838556,-333780.79173897,0.00011,2]
[339938509,1728169840188,-1654.32658979,0.00011,2]
[339938511,1728169840199,-2428.38918702,0.00011,2]
[339938513,1728169840210,-780.96545332,0.00011,2]
[339938515,1728169840221,-483.69,0.00011,2]
[339938518,1728169840233,-252.075,0.00011,2]
[339938520,1728169840244,-4279.71708067,0.00011,2]
[339938522,1728169840255,-4019.09127962,0.00011,2]
[339938524,1728169840266,-315.6,0.00011,2]
[339938526,1728169840278,-1777.7292,0.00011,2]
[339938534,1728169840350,-1469.6911387,0.00011,2]
[339938536,1728169840361,-96904.15840643,0.00011,2]
[339938820,1728169843407,-29142.31862841,0.00011,2]
[339938822,1728169843419,-17425.3167448,0.00011,2]
[339938824,1728169843432,-16268.07293523,0.00011,2]
[339938826,1728169843444,-782.4782933,0.00011,2]
[339938977,1728169846247,-15283.75980074,0.00011,2]
[339938978,1728169846258,-9831.76687634,0.00011,2]
[339938979,1728169846269,-8179.73972213,0.00011,2]
[339938980,1728169846280,-268.71844669,0.00011,2]
[339938981,1728169846451,-549.96057904,0.00011,2]
[339938982,1728169846463,-1139.9999995,0.00011,2]
[339938987,1728169878500,156.28090448,0.000109,2]
[339938988,1728169934774,256.4243,0.000109,2]
[339938989,1728169979106,1495.78307067,0.00010999,3]
[339938990,1728170121939,150.0,0.00010754,2]
[339938991,1728170121976,150.0,0.00010842,2]
[339938992,1728170122101,150.0,0.00010946,2]
[339938993,1728170122217,150.0,0.00010846,2]
[339938994,1728170122276,150.0,0.00010929,2]
[339938995,1728170122331,165.54167753,0.0001092,2]
[339938996,1728170171214,1083.62884355,0.000109,2]
[339938997,1728170236673,694.89,9.557e-05,2]
[339938998,1728170299683,162.93,0.00010959,2]
[339938999,1728170302417,944.144,0.000109,2]
[339939000,1728170311553,203.765,0.0001078,2]
[339939001,1728170311595,158.72,0.0001078,2]
[339939002,1728170394275,3975.17257156,0.00010957,2]
[339939004,1728170554917,159.79061283,0.000109,2]
[339939005,1728170596517,975.26595915,0.000109,2]
[339939006,1728170633312,200.0,0.00010846,2]
[339939007,1728170772838,673.58,9.592e-05,2]
[339939008,1728170782163,150.0,0.00010888,2]
[339939009,1728170782225,300.0,0.00010796,2]
[339939015,1728170924761,160.55,0.00010959,2]
[339939020,1728170958164,-2888.5112776,0.00010994,2]
[339939021,1728170958188,-7035.3517185,0.00010994,2]
[339939022,1728170958211,-150.0,0.00010996,2]
[339939023,1728170958233,-3676.41441307,0.00010997,2]
[339939033,1728171022148,877.73936328,0.000109,2]
[339939037,1728171032346,-300.0,0.00010996,2]